fUSD/lending_fUSD_20250403
["ID","MTS","AMOUNT","RATE_DAILY","PERIOD"]
[357091747,1743717977353,256.272319,0.000249,7]
[357091750,1743718014199,151.0,0.000239,7]
[357091751,1743718014611,270.056534,0.000248,7]
[357091752,1743718061023,151.0,0.000239,7]
[357091753,1743718061312,151.0,0.000248,7]
[357091754,1743718061617,151.0,0.000249,7]
[357091755,1743718064034,151.0,0.000239,7]
[357091756,1743718064405,151.0,0.000248,7]
[357091757,1743718064689,151.0,0.000249,7]
[357091758,1743718078806,-159.79533431,0.0001704,2]
[357091759,1743718097981,151.0,0.000239,7]
[357091760,1743718098395,151.0,0.000248,7]
[357091761,1743718098948,151.0,0.000249,7]
[357091763,1743718231514,-991.52466569,0.0001704,2]
[357091765,1743718231525,-503.04,0.00018579,2]
[357091766,1743718231536,-250.0,0.00018744,2]
[357091767,1743718231545,-250.0,0.00018862,2]
[357091768,1743718231555,-162.23374468,0.00019079,2]
[357091769,1743718231564,-300.0,0.00019145,2]
[357091770,1743718231574,-10674.33489063,0.00019146,2]
[357091771,1743718231586,-610.0,0.00019146,2]
[357091772,1743718231609,-350.0,0.00019146,2]
[357091773,1743718231631,-1391.08289891,0.00019146,2]
[357091774,1743718231647,-290.00835356,0.00019146,2]
[357091775,1743718231658,-5801.62938366,0.00019146,2]
[357091776,1743718231702,-363.00845049,0.00019146,2]
[357091777,1743718231714,-905.69823873,0.00019146,2]
[357091778,1743718231725,-370.04022624,0.00019146,2]
[357091779,1743718231758,-3144.19755778,0.00019146,2]
[357091780,1743718231768,-303.11289789,0.00019188,2]
[357091781,1743718231777,-154.3,0.00019279,2]
[357091782,1743718231786,-1214.12,0.00019293,2]
[357091783,1743718231795,-1151.32,0.00019304,2]
[357091784,1743718231805,-500.0,0.00019315,2]
[357091785,1743718231814,-205.06,0.00019379,2]
[357091786,1743718231824,-1178.3071673,0.00019399,2]
[357091787,1743718231833,-750.0,0.00019451,2]
[357091788,1743718231842,-778.53282996,0.00019452,2]
[357091789,1743718231873,-216.61017004,0.00019452,2]
[357091790,1743718231883,-150.99,0.00019452,2]
[357091791,1743718231893,-271.53137946,0.00019452,2]
[357091855,1743718232468,-151.28,0.00019452,2]
[357091883,1743718237520,-212.58971931,0.00018762,2]
[357091884,1743718237529,-1902.88877345,0.00019452,2]
[357091885,1743718237562,151.0,0.000239,7]
[357091886,1743718237576,-1200.0,0.00019452,2]
[357091887,1743718237588,-6474.28984709,0.00019452,2]
[357091888,1743718237598,-4865.18,0.00019452,2]
[357091889,1743718237607,-162.23374468,0.00019467,2]
[357091890,1743718237617,-300.86,0.00019566,2]
[357091891,1743718237626,-8688.26,0.00019566,2]
[357091892,1743718237637,-505.35,0.00019566,2]
[357091893,1743718237649,-4747.3046912,0.00019567,2]
[357091894,1743718237660,-2274.40999996,0.00019567,2]
[357091895,1743718237672,-1217.63557993,0.00019567,2]
[357091896,1743718237745,-257.26787767,0.00019567,2]
[357091897,1743718237810,-604.71309673,0.00019567,2]
[357091898,1743718237822,-1868.51651062,0.00019567,2]
[357091899,1743718237869,151.0,0.000248,7]
[357091900,1743718237881,-1036.01785492,0.00019567,2]
[357091901,1743718237893,-1803.70000001,0.00019567,2]
[357091910,1743718238287,151.0,0.000249,7]
[357091912,1743718239730,-150.0,0.00019298,2]
[357091913,1743718239742,-832.65771324,0.00019567,2]
[357091914,1743718239756,-12793.84667572,0.00019567,2]
[357091915,1743718239766,-166.67,0.00019662,2]
[357091916,1743718239775,-1000.0,0.000197,2]
[357091917,1743718239786,-300.0,0.000198,2]
[357091918,1743718239795,-518.01890121,0.000198,2]
[357091919,1743718239806,-1012.0,0.000198,2]
[357091920,1743718239816,-331.7416,0.00019833,2]
[357091921,1743718239825,-701.82247433,0.00019833,2]
[357091922,1743718239837,-1798.17752567,0.00019833,2]
[357091923,1743718239846,-3166.14095417,0.0001985,2]
[357091924,1743718239870,-919.39818052,0.0001985,2]
[357091925,1743718239959,-4251.9287334,0.0001985,2]
[357091928,1743718240194,-0.00728745,0.0001985,2]
[357091936,1743718241412,-218.39277039,0.0001985,2]
[357091947,1743718243611,-212.5897193,0.00019045,2]
[357091948,1743718243620,-459.95619385,0.0001985,2]
[357091949,1743718243631,-30794.80368022,0.0001985,2]
[357091950,1743718243645,-1284.0,0.00019858,2]
[357091951,1743718243655,-166.0,0.00019858,2]
[357091952,1743718243663,-299.088,0.00019858,2]
[357091953,1743718243670,-1432.0,0.00019858,2]
[357091954,1743718243678,-958.138,0.00019858,2]
[357091955,1743718243686,-909.0,0.00019858,2]
[357091956,1743718243693,-543.0,0.00019858,2]
[357091957,1743718243700,-4095.0,0.00019858,2]
[357091958,1743718243708,-219.762,0.00019858,2]
[357091959,1743718243717,-3951.0,0.00019858,2]
[357091960,1743718243724,-1104.955,0.00019858,2]
[357091961,1743718243731,-500.0,0.00019863,2]
[357091962,1743718243738,-3233.3462,0.00019873,2]
[357091963,1743718243745,-12695.6545,0.000199,2]
[357091964,1743718243756,-500.0,0.000199,2]
[357091965,1743718243766,-1000.0,0.000199,2]
[357091966,1743718243776,-212.47400029,0.000199,2]
[357091967,1743718243785,-513.9338,0.000199,2]
[357091968,1743718243795,-1382.768,0.000199,2]
[357091969,1743718243804,-4377.4584,0.000199,2]
[357091970,1743718243814,-222.7585,0.000199,2]
[357091971,1743718243823,-202.4576,0.000199,2]
[357091972,1743718243833,-7452.0545,0.000199,2]
[357091973,1743718243842,-1120.8255,0.000199,2]
[357091974,1743718243852,-214.1626,0.000199,2]
[357091975,1743718243861,-4228.57020843,0.000199,2]
[357091976,1743718243871,-212.99892041,0.000199,2]
[357091977,1743718243881,-3951.88511984,0.000199,2]
[357091978,1743718243891,-683.01179212,0.000199,2]
[357091979,1743718243901,-683.01179211,0.000199,2]
[357091980,1743718243910,-7371.61892552,0.00019933,2]
[357091981,1743718243922,-258.91099997,0.00019933,2]
[357091982,1743718243946,-371.88141895,0.00019933,2]
[357091983,1743718243958,-6525.84759785,0.00019933,2]
[357091984,1743718243967,-236.0,0.0001995,2]
[357091985,1743718243977,-500.0,0.00019973,2]
[357091986,1743718243986,-7703.2351711,0.00019999,2]
[357091987,1743718243996,-19131.2224102,0.00019999,2]
[357091988,1743718244008,-793280.46945475,0.0002,2]
[357091989,1743718244020,-707.3898016,0.0002,2]
[357091990,1743718244031,-3912.29665833,0.0002,2]
[357092039,1743718245770,-544.999995,0.0002,2]
[357092052,1743718245884,-253.29336245,0.0002,2]
[357092054,1743718245896,-941.635,0.0002,2]
[357092069,1743718263416,-153.21286198,0.00019145,2]
[357092070,1743718263441,-9.23226511,0.000199,2]
[357092071,1743718290531,151.0,0.0002466,7]
[357092072,1743718290851,151.0,0.000248,7]
[357092073,1743718291242,151.0,0.000249,7]
[357092074,1743718312638,151.0,0.0002466,7]
[357092075,1743718375248,151.0,0.00024642,7]
[357092076,1743718375547,151.0,0.000248,7]
[357092077,1743718375839,151.0,0.000249,7]
[357092078,1743718378803,151.0,0.00024642,7]
[357092079,1743718379405,151.0,0.000248,7]
[357092080,1743718379484,151.0,0.000249,7]
[357092081,1743718394880,151.0,0.00024605,7]
[357092082,1743718395183,151.0,0.000248,7]
[357092083,1743718396110,151.0,0.000249,7]
[357092084,1743718413751,151.0,0.00024605,7]
[357092085,1743718414368,151.0,0.000248,7]
[357092086,1743718414689,151.0,0.000249,7]
[357092087,1743718476711,151.0,0.00024605,7]
[357092088,1743718482408,151.0,0.00024606,7]
[357092089,1743718482704,151.0,0.000249,7]
[357092090,1743718483154,151.0,0.00024606,7]
[357092091,1743718483508,151.0,0.000249,7]
[357092092,1743718486102,151.0,0.00024606,7]
[357092093,1743718486407,151.0,0.000249,7]
[357092094,1743718574383,151.0,0.0002466,7]
[357092095,1743718593981,151.0,0.0002466,7]
[357092096,1743718594412,151.0,0.000249,7]
[357092097,1743718615302,299.99,0.00020466,7]
[357092098,1743718693518,211.473476,0.0002466,7]
[357092099,1743718714552,-213.7619,0.00019399,2]
[357092100,1743718715574,-213.7619,0.00019399,2]
[357092101,1743718756762,-213.7619,0.00019399,2]
[357092102,1743718769986,151.0,0.0002462,7]
[357092103,1743718770281,184.50763,0.000248,7]
[357092104,1743718846132,-213.7619,0.00019399,2]
[357092105,1743718886317,151.0,0.00024581,7]
[357092106,1743718887107,151.0,0.000248,7]
[357092107,1743718887266,151.0,0.000249,7]
[357092109,1743718971493,151.0,0.00024484,7]
[357092110,1743718971788,151.0,0.000248,7]
[357092111,1743718972085,151.0,0.000249,7]
[357092112,1743719011220,150.0,0.00020594,7]
[357092113,1743719077448,151.0,0.00024412,7]
[357092114,1743719077751,151.0,0.000248,7]
[357092115,1743719078057,151.0,0.000249,7]
[357092116,1743719111783,-213.7619,0.000154,2]
[357092117,1743719134954,-803.68,0.000154,2]
[357092118,1743719162088,-163.0,0.00015399,2]
[357092119,1743719222024,-151.0,0.00015399,2]
[357092120,1743719229400,-900.0,0.000153,2]
[357092124,1743719281398,-163.29613777,0.00015,2]
[357092125,1743719321084,-150.0,0.000149,2]
[357092131,1743719339443,-565.45955361,0.000149,2]
[357092132,1743719339467,-354.38434639,0.00015,2]
[357092142,1743719431681,-189.53773967,0.00014999,2]
[357092143,1743719431691,-150.0,0.00014999,2]
[357092144,1743719431701,-300.0,0.00014999,2]
[357092146,1743719431711,-1.29962981,0.00015,2]
[357092150,1743719431728,-1922.27528099,0.00015,2]
[357092152,1743719431739,-10335.35274793,0.00015,2]
[357092154,1743719431958,-1539.6573271,0.00015,2]
[357092158,1743719432228,-24042.61756843,0.00015,2]
[357092160,1743719432243,-12319.90945702,0.00015,2]
[357092265,1743719437714,-932.58255358,0.00015,2]
[357092266,1743719437799,-2538.48769565,0.00015,2]
[357092267,1743719437816,-6224.572055,0.00015,2]
[357092276,1743719441589,-2685.31124165,0.00015,2]
[357092291,1743719443998,-2058.3,0.00015,2]
[357092295,1743719446145,-3244.90580009,0.00015,2]
[357092296,1743719462521,-214.13,0.00014999,2]
[357092297,1743719479347,1000.0,3.4e-05,30]
[357092298,1743719483646,-85.87,0.00014999,2]
[357092299,1743719483669,-138.13,0.00015,2]
[357092300,1743719572959,151.0,0.000239,7]
[357092301,1743719573243,151.0,0.000248,7]
[357092302,1743719573665,253.64533,0.000249,7]
[357092303,1743719581927,441000.0,0.0003,30]
[357092304,1743719688619,151.0,0.000239,7]
[357092305,1743719688900,177.067329,0.000248,7]
[357092306,1743719691655,160.52535,0.00014899,2]
[357092307,1743719905369,-160.52535,0.0001495,2]
[357092308,1743719905393,-73.59301645,0.0001495,2]
[357092309,1743719910624,932.051,0.000248,8]
[357092310,1743719925813,179.95,0.00013699,2]
[357092311,1743720004080,-159.83696741,0.0001499,2]
[357092312,1743720023696,-250.0,0.0001499,2]
[357092313,1743720058559,-150.0,0.0001499,2]
[357092314,1743720122416,-176.46,0.0001499,2]
[357092315,1743720174685,150.0,0.0001731,7]
[357092316,1743720184666,174.62,0.00013848,2]
[357092320,1743720508296,-297.17206569,0.0001499,2]
[357092321,1743720604217,-173.19014926,0.0001499,2]
[357092324,1743720631928,-451.76828248,0.0001499,2]
[357092325,1743720631942,-1264.29999999,0.0001499,2]
[357092326,1743720632032,-616.5344,0.0001499,2]
[357092327,1743720632139,-486.63987481,0.0001499,2]
[357092328,1743720632174,-68930.18009842,0.0001499,2]
[357092329,1743720632184,-695.7103541,0.0001499,2]
[357092330,1743720632193,-150.0,0.00014999,2]
[357092331,1743720632203,-89392.49809628,0.00015,2]
[357092438,1743720633171,-297.17206569,0.00015,2]
[357092603,1743720637887,-409.725,0.00015,2]
[357092604,1743720637898,-1153.45963817,0.00015,2]
[357092605,1743720637913,-140959.30751245,0.00015,2]
[357092608,1743720638129,-314.28750494,0.00015,2]
[357092613,1743720640024,-643.84292897,0.00015,2]
[357092614,1743720640117,-0.01009859,0.00015,2]
[357092615,1743720640530,-8000.0,0.00015,2]
[357092616,1743720640542,-14681.33303315,0.00015,2]
[357092617,1743720640555,-797.6518777,0.00015,2]
[357092618,1743720640566,-1094.0,0.00015,2]
[357092624,1743720643134,-16382.67798578,0.00015,2]
[357092625,1743720643146,-7517.8456877,0.00015,2]
[357092626,1743720643157,-5656.22250845,0.00015,2]
[357092638,1743720644444,-4269.1,0.00015,2]
[357092639,1743720644481,-392.29490377,0.00015,2]
[357092640,1743720644570,-506.894504,0.00015,2]
[357092641,1743720646010,-27288.74259338,0.00015,2]
[357092642,1743720646020,-675.59682186,0.000151,2]
[357092643,1743720646030,-617.64,0.000153,2]
[357092644,1743720646040,-13594.10738883,0.000154,2]
[357092645,1743720646049,-1172.8,0.0001554,2]
[357092646,1743720646059,-675.59682181,0.00015633,2]
[357092647,1743720646068,-150.0,0.00015699,2]
[357092648,1743720646078,-5749.27561303,0.00016,2]
[357092649,1743720646247,-1726.63984074,0.00016,2]
[357092650,1743720646256,-255.0,0.00016124,2]
[357092651,1743720646266,-675.59682181,0.00016167,2]
[357092652,1743720646275,-250.0,0.00016489,2]
[357092653,1743720646285,-250.0,0.00016489,2]
[357092654,1743720646294,-250.0,0.00016489,2]
[357092655,1743720646303,-675.59682181,0.000167,2]
[357092656,1743720646313,-235.92020159,0.00016922,2]
[357092657,1743720688368,268.277551,0.000239,7]
[357092658,1743720842035,-198.72,0.00016922,2]
[357092659,1743720877708,151.0,0.000239,7]
[357092660,1743720910007,-151.0,0.00016922,2]
[357092661,1743720937376,-150.0,0.00016922,2]
[357092662,1743720944455,-150.0,0.00016922,2]
[357092663,1743721110641,745.64,0.000248,8]
[357092664,1743721173062,174.62,0.00014151,2]
[357092665,1743721300882,150.0,0.00017868,7]
[357092666,1743721452479,-208.48755126,0.000156,2]
[357092667,1743721502520,-150.0,0.000156,2]
[357092668,1743721507492,-151.33,0.000156,2]
[357092669,1743721530459,-150.0,0.000156,2]
[357092670,1743721551001,-501.91244874,0.000156,2]
[357092671,1743721551025,-150.0,0.00016859,2]
[357092672,1743721551049,-203.13542126,0.00017077,2]
[357092676,1743721832207,-46.86457874,0.00017077,2]
[357092677,1743721832219,-313.07886982,0.00017077,2]
[357092678,1743721832231,-250.0,0.00017203,2]
[357092679,1743721832243,-500.0,0.0001726,2]
[357092680,1743721832256,-500.0,0.00017425,2]
[357092681,1743721832269,-607.06,0.00017473,2]
[357092682,1743721832283,-246.83,0.000175,2]
[357092683,1743721832296,-158.78,0.00017511,2]
[357092684,1743721832310,-803.68,0.00017522,2]
[357092685,1743721832322,-250.0,0.00017525,2]
[357092686,1743721832334,-2000.0,0.00017526,2]
[357092687,1743721832346,-200.0,0.00017548,2]
[357092688,1743721832359,-400.0,0.00017639,2]
[357092689,1743721832371,-500.0,0.00017671,2]
[357092690,1743721832383,-200.0,0.00017724,2]
[357092691,1743721832396,-1000.0,0.00017726,2]
[357092692,1743721832408,-300.0,0.00017775,2]
[357092693,1743721832419,-23900.0,0.00017776,2]
[357092694,1743721832431,-8661.94,0.00017809,2]
[357092695,1743721832442,-193.4,0.00017859,2]
[357092696,1743721832454,-1161.73,0.00017864,2]
[357092697,1743721832466,-166.66,0.00017933,2]
[357092698,1743721832478,-500.0,0.00018027,2]
[357092699,1743721832489,-223.3,0.00018346,2]
[357092700,1743721832500,-1716.83974881,0.00018346,2]
[357092701,1743721832513,-205.0,0.00018355,2]
[357092702,1743721832527,-20658.03,0.00018356,2]
[357092703,1743721832539,-166.65,0.00018402,2]
[357092705,1743721832550,-521.65,0.00018533,2]
[357092707,1743721832561,-500.0,0.00018603,2]
[357092709,1743721832571,-250.0,0.00018614,2]
[357092711,1743721832583,-500.0,0.00018877,2]
[357092713,1743721832593,-3421.9094,0.000189,2]
[357092716,1743721832604,-417.817,0.000189,2]
[357092718,1743721832615,-223.9821,0.000189,2]
[357092720,1743721832626,-169.3174,0.000189,2]
[357092722,1743721832637,-1149.2003,0.000189,2]
[357092724,1743721832648,-166.66,0.0001892,2]
[357092726,1743721832659,-158.78,0.0001897,2]
[357092728,1743721832670,-1526.36380408,0.00019,2]
[357092731,1743721832683,-10757.04963509,0.00019,2]
[357092733,1743721832696,-312.48341354,0.00019,2]
[357092735,1743721832713,-774.11146098,0.00019,2]
[357092738,1743721832727,-12400.54553728,0.00019,2]
[357092740,1743721832737,-137.54903097,0.00019,2]
[357092743,1743721832756,-832.36096903,0.00019,2]
[357092745,1743721832767,-240.13865231,0.00019221,2]
[357092747,1743721832780,-59.86134769,0.00019221,2]
[357092749,1743721832792,-1340.18383482,0.00019398,2]
[357092751,1743721832804,-5458.00703513,0.00019398,2]
[357092754,1743721832817,-8936.84717815,0.00019398,2]
[357092756,1743721832827,-883.7303755,0.00019399,2]
[357092758,1743721832837,-276.0,0.00019399,2]
[357092760,1743721832847,-151.0,0.000194,2]
[357092762,1743721832858,-3951.0,0.000194,2]
[357092764,1743721832868,-6594.8140032,0.00019411,2]
[357092767,1743721832879,-166.65,0.00019414,2]
[357092769,1743721832890,-500.0,0.00019425,2]
[357092771,1743721832901,-1053.84486906,0.000196,2]
[357092773,1743721832911,-1053.84486901,0.00019633,2]
[357092775,1743721832922,-1053.84486901,0.00019667,2]
[357092777,1743721832933,-150.046,0.00019692,2]
[357092779,1743721832944,-159.111,0.00019692,2]
[357092781,1743721832955,-150.199,0.00019692,2]
[357092784,1743721832966,-1284.0,0.00019692,2]
[357092786,1743721832977,-246.582,0.00019692,2]
[357092788,1743721832987,-4083.0,0.00019692,2]
[357092790,1743721832998,-2440.663,0.000197,2]
[357092792,1743721833009,-32724.47899683,0.000197,2]
[357092794,1743721833022,-946.24,0.000197,2]
[357092797,1743721833035,-25991.25830317,0.000197,2]
[357092799,1743721833046,-2500.0,0.000197,2]
[357092801,1743721833057,-1000.0,0.000197,2]
[357092803,1743721833067,-1053.84486901,0.000197,2]
[357092805,1743721833078,-1053.84486901,0.00019733,2]
[357092807,1743721833088,-1053.84486901,0.00019767,2]
[357092809,1743721833099,-7586.079,0.000198,2]
[357092811,1743721833110,-1071.1778,0.000198,2]
[357092813,1743721833121,-213.7619,0.000198,2]
[357092816,1743721833133,-2883.5342,0.000198,2]
[357092818,1743721833144,-301.33,0.000198,2]
[357092820,1743721833155,-2670.3527,0.000198,2]
[357092822,1743721833165,-161.0038,0.000198,2]
[357092824,1743721833176,-982.1267,0.000198,2]
[357092826,1743721833187,-433.4388,0.000198,2]
[357092828,1743721833198,-1053.84486901,0.000198,2]
[357092830,1743721833209,-1053.84486901,0.00019833,2]
[357092833,1743721833220,-1053.84486901,0.00019867,2]
[357092835,1743721833231,-500.0,0.00019873,2]
[357092837,1743721833242,-500.0,0.00019873,2]
[357092839,1743721833253,-761.47223095,0.000199,2]
[357092841,1743721833264,-349.4782,0.000199,2]
[357092843,1743721833275,-28754.21802182,0.000199,2]
[357092846,1743721833288,-366.84501,0.000199,2]
[357092848,1743721833301,-895.97952156,0.000199,2]
[357092853,1743721833337,-149.18341721,0.000199,2]
[357092855,1743721833350,-738.4926364,0.000199,2]
[357092857,1743721833362,-500.0,0.000199,2]
[357092859,1743721833375,-855.60425003,0.000199,2]
[357092862,1743721833388,-696.62044734,0.000199,2]
[357092864,1743721833401,-568.16930016,0.000199,2]
[357092868,1743721833427,-8999.0704576,0.000199,2]
[357092870,1743721833441,-23778.11333788,0.000199,2]
[357092872,1743721833452,-1000.0,0.000199,2]
[357092875,1743721833462,-218.75467177,0.000199,2]
[357092877,1743721833472,-659.519,0.000199,2]
[357092879,1743721833482,-177.95273777,0.000199,3]
[357092880,1743721833493,-1053.84486901,0.000199,2]
[357092882,1743721833503,-3222.01946062,0.000199,2]
[357092884,1743721833513,-166.66,0.00019906,2]
[357092886,1743721833522,-1000.0,0.00019942,2]
[357092888,1743721833532,-500.0,0.00019973,2]
[357092890,1743721833541,-500.0,0.00019973,2]
[357092892,1743721833550,-482.26619861,0.00019973,2]
[357092894,1743721833559,-6213.0683551,0.00019986,2]
[357092896,1743721833570,-5831.322707,0.00019986,2]
[357092898,1743721833579,-14804.9355775,0.00019986,2]
[357092900,1743721833588,-13874.8331069,0.00019986,2]
[357092902,1743721833598,-151.0,0.00019986,2]
[357092904,1743721833607,-1883.56040252,0.0001999,2]
[357092906,1743721833616,-1883.56040252,0.0001999,2]
[357092908,1743721833626,-1006.9919,0.00019999,2]
[357092910,1743721833635,-590.0,0.0002,2]
[357092912,1743721833644,-110171.22978273,0.0002,2]
[357092914,1743721833655,-1156.70713892,0.0002,2]
[357092916,1743721833666,-3145.05925856,0.0002,2]
[357092918,1743721833678,-4050.0,0.0002,2]
[357092921,1743721833690,-2719.999997,0.0002,2]
[357092923,1743721833706,-3081.98986337,0.0002,2]
[357093307,1743721838071,-4049.8026,0.0002,2]
[357093308,1743721838083,-548.05000155,0.0002,2]
[357093309,1743721838149,-4108.3547939,0.0002,2]
[357093310,1743721838160,-166518.94437003,0.0002,2]
[357093311,1743721838171,-20683.16853405,0.0002,2]
[357093312,1743721838183,-169503.83409735,0.0002,2]
[357093313,1743721838196,-775.44461026,0.0002,2]
[357093314,1743721838244,-1296.4560435,0.0002,2]
[357093315,1743721838255,-533.23240486,0.0002,2]
[357093316,1743721838267,-364.04259866,0.0002,2]
[357093317,1743721838279,-624.1476786,0.0002,2]
[357093318,1743721838290,-929.41239997,0.0002,2]
[357093319,1743721838318,-149.12520211,0.0002,2]
[357093320,1743721838334,-423.82590353,0.0002,2]
[357093321,1743721838346,-3067.99999,0.0002,2]
[357093326,1743721840428,-0.00130112,0.000198,2]
[357093327,1743721840440,-522.91188455,0.000198,2]
[357093328,1743721840454,-353.14709461,0.000198,2]
[357093329,1743721840465,-297.83586211,0.000198,2]
[357093330,1743721840476,-2668.3528013,0.000198,2]
[357093331,1743721840488,-11640.95841414,0.000198,2]
[357093332,1743721840499,-3623.06976346,0.000198,2]
[357093333,1743721840510,-1514.18822812,0.000198,2]
[357093334,1743721840566,-2407.17336082,0.000198,2]
[357093344,1743721842966,-169.48403522,0.000198,2]
[357093345,1743721843218,-402.6560627,0.000198,2]
[357093356,1743721844498,-1121.80574648,0.000198,2]
[357093357,1743721844510,-8313.35309977,0.000198,2]
[357093358,1743721846257,-618.56410682,0.000198,2]
[357093359,1743721846301,-2877.12511633,0.000198,2]
[357093360,1743721846520,-1752.68,0.000198,2]
[357093361,1743721864680,-151.28,0.00019399,2]
[357093362,1743721881885,-151.28,0.000189,2]
[357093363,1743721884480,151.0,0.00022548,7]
[357093364,1743721884777,151.0,0.000239,7]
[357093365,1743721958584,151.0,0.000239,7]
[357093366,1743721958873,151.0,0.000248,7]
[357093367,1743722072996,151.0,0.000239,7]
[357093368,1743722073208,151.0,0.000248,7]
[357093369,1743722217627,-7422.00283238,0.0002,4]
[357093370,1743722217669,-2000.0,0.0002,4]
[357093371,1743722247433,-72.7021,0.000189,2]
[357093372,1743722247478,-624.9777816,0.00019399,2]
[357093373,1743722247521,-15736.77,0.00019504,2]
[357093374,1743722247570,-1000.0,0.00019545,2]
[357093375,1743722247614,-1000.0,0.000196,2]
[357093376,1743722247659,-2467.7541,0.000196,2]
[357093377,1743722247701,-1284.0,0.00019692,2]
[357093378,1743722247744,-668.2584,0.000197,2]
[357093379,1743722247787,-500.0,0.00019781,2]
[357093380,1743722247836,-28018.98952245,0.000198,2]
[357093381,1743722247889,-150.0,0.00019899,2]
[357093382,1743722247933,-202.25934242,0.000199,2]
[357093383,1743722247977,-609.17778476,0.000199,2]
[357093384,1743722248021,-165.12850282,0.000199,2]
[357093385,1743722248066,-151.28,0.000199,2]
[357093386,1743722248110,-2500.0,0.000199,2]
[357093387,1743722248153,-2148.01297374,0.000199,2]
[357093388,1743722248197,-500.0,0.00019973,2]
[357093389,1743722248240,-500.0,0.00019973,2]
[357093390,1743722248283,-386.93,0.0001999,3]
[357093391,1743722248326,-18050.65,0.00019999,2]
[357093392,1743722248370,-531.0,0.0002,2]
[357093393,1743722248422,-64197.22033128,0.0002,2]
[357093394,1743722248775,-72.7021,0.0002,2]
[357093395,1743722248786,-435.68171857,0.0002,2]
[357093396,1743722248798,-435.68171857,0.0002,2]
[357093397,1743722248815,-435.68171857,0.0002,2]
[357093398,1743722248834,-435.68171857,0.0002,2]
[357093399,1743722248864,-435.68171857,0.0002,2]
[357093400,1743722248877,-435.68171857,0.0002,2]
[357093401,1743722248888,-435.68171857,0.0002,2]
[357093402,1743722248900,-435.68171857,0.0002,2]
[357093403,1743722248915,-435.68171857,0.0002,2]
[357093404,1743722248930,-150.0,0.0002,2]
[357093405,1743722248946,-202.25934242,0.0002,2]
[357093406,1743722248956,-435.68171857,0.0002,2]
[357093407,1743722248971,-165.12850282,0.0002,2]
[357093408,1743722248983,-151.28,0.0002,2]
[357093409,1743722248995,-435.68171857,0.0002,2]
[357093410,1743722249015,-435.68171857,0.0002,2]
[357093411,1743722249026,-435.68171857,0.0002,2]
[357093412,1743722249038,-435.68171857,0.0002,2]
[357093413,1743722249086,-386.93,0.0002,2]
[357093414,1743722249098,-435.68171857,0.0002,2]
[357093415,1743722249113,-435.68171857,0.0002,2]
[357093416,1743722249128,-435.68171857,0.0002,2]
[357093417,1743722281669,350.0,0.0002189,12]
[357093418,1743722281736,350.0,0.0001995,12]
[357093419,1743722375333,150.0,0.00020842,7]
[357093420,1743722544362,1706.63373048,0.0002,5]
[357093421,1743722565119,151.0,0.000225,7]
[357093422,1743722755563,-153.21286198,0.0001495,2]
[357093426,1743722882588,-159.79533431,0.0001495,2]
[357093432,1743723005405,-150.0,0.000149,2]
[357093433,1743723005429,-63.7619,0.0001495,2]